[Event "Titled Tuesday Blitz February 14 Early 2023"]
[White "Sovetbekova, Nurai"]
[Black "Kaidanov, Gregory"]
[WhiteFideId "13801910"]
[BlackFideId "2008564"]
[WhiteElo "1764"]
[BlackElo "2559"]
[Result "0-1"]
[Round "03"]
[TimeControl "180+2"]
[Date "2023.02.15"]
[WhiteClock "0:00:01"]
[BlackClock "0:01:13"]

1. d4 {[%clk 0:03:00]}  d5 {[%clk 0:02:59]} 2. c4 {[%clk 0:02:59]}  e6 {[%clk 0:03:00]} 3. Nc3 {[%clk 0:02:57]}  c6 {[%clk 0:03:00]} 4. Nf3 {[%clk 0:02:54]}  Nf6 {[%clk 0:03:00]} 5. g3 {[%clk 0:02:50]}  Nbd7 {[%clk 0:02:59]} 6. Bg2 {[%clk 0:02:50]}  Be7 {[%clk 0:02:59]} 7. O-O {[%clk 0:02:50]}  O-O {[%clk 0:03:00]} 8. Qd3 {[%clk 0:02:46]}  b6 {[%clk 0:02:59]} 9. e4 {[%clk 0:02:45]}  Ba6 {[%clk 0:02:59]} 10. b3 {[%clk 0:02:43]}  dxc4 {[%clk 0:02:58]} 11. bxc4 {[%clk 0:02:43]}  e5 {[%clk 0:02:58]} 12. d5 {[%clk 0:02:33]}  Qc8 {[%clk 0:02:57]} 13. d6 {[%clk 0:02:23]}  Bd8 {[%clk 0:02:55]} 14. Bh3 {[%clk 0:02:18]}  Qb7 {[%clk 0:02:50]} 15. Be3 {[%clk 0:02:11]}  Re8 {[%clk 0:02:46]} 16. Rfd1 {[%clk 0:02:07]}  b5 {[%clk 0:02:40]} 17. cxb5 {[%clk 0:02:01]}  cxb5 {[%clk 0:02:41]} 18. Nd5 {[%clk 0:01:27]}  b4 {[%clk 0:02:34]} 19. Qb3 {[%clk 0:01:19]}  Nxd5 {[%clk 0:02:29]} 20. Rxd5 {[%clk 0:01:06]}  Bf6 {[%clk 0:02:10]} 21. Rb1 {[%clk 0:00:43]}  Rab8 {[%clk 0:02:10]} 22. Nd2 {[%clk 0:00:40]}  Nb6 {[%clk 0:02:03]} 23. Rc5 {[%clk 0:00:34]}  Rbd8 {[%clk 0:01:47]} 24. Rc7 {[%clk 0:00:30]}  Qb8 {[%clk 0:01:48]} 25. Qxf7+ {[%clk 0:00:30]}  Kh8 {[%clk 0:01:48]} 26. Bc5 {[%clk 0:00:18]}  Rf8 {[%clk 0:01:40]} 27. Qh5 {[%clk 0:00:18]}  Bc8 {[%clk 0:01:35]} 28. Bxc8 {[%clk 0:00:16]}  Nxc8 {[%clk 0:01:36]} 29. Rxb4 {[%clk 0:00:15]}  Qa8 {[%clk 0:01:34]} 30. Rbb7 {[%clk 0:00:14]}  Nxd6 {[%clk 0:01:33]} 31. Bxd6 {[%clk 0:00:13]}  Rxd6 {[%clk 0:01:33]} 32. Nc4 {[%clk 0:00:13]}  Rc6 {[%clk 0:01:26]} 33. Nd6 {[%clk 0:00:09]}  Rxd6 {[%clk 0:01:25]} 34. Qg4 {[%clk 0:00:09]}  Rg8 {[%clk 0:01:21]} 35. Rxa7 {[%clk 0:00:08]}  Qb8 {[%clk 0:01:18]} 36. Rab7 {[%clk 0:00:08]}  Qe8 {[%clk 0:01:18]} 37. Kg2 {[%clk 0:00:07]}  Qa4 {[%clk 0:01:17]} 38. Rc8 {[%clk 0:00:04]}  Rdd8 {[%clk 0:01:17]} 39. Rbb8 {[%clk 0:00:02]}  Rxc8 {[%clk 0:01:15]} 40. Rxc8 {[%clk 0:00:02]}  Qxa2 {[%clk 0:01:15]} 41. Qd7 {[%clk 0:00:01]}  h6 {[%clk 0:01:13]} 0-1


[Site "https://www.chess.com"]

[Event "Titled Tuesday Blitz February 14 Early 2023"]
[White "Mamedov, Edgar"]
[Black "Urbina Quiroz, Edwin"]
[WhiteFideId "13739980"]
[BlackFideId "6500650"]
[WhiteElo "2193"]
[BlackElo "2129"]
[Result "1-0"]
[Round "03"]
[TimeControl "180+2"]
[Date "2023.02.15"]
[WhiteClock "0:00:04"]
[BlackClock "0:00:07"]

1. d4 {[%clk 0:02:59]}  d5 {[%clk 0:02:55]} 2. Bg5 {[%clk 0:02:57]}  f6 {[%clk 0:02:53]} 3. Bf4 {[%clk 0:02:56]}  Nc6 {[%clk 0:02:27]} 4. Nf3 {[%clk 0:02:55]}  Bg4 {[%clk 0:02:27]} 5. Nbd2 {[%clk 0:02:54]}  e6 {[%clk 0:02:25]} 6. e3 {[%clk 0:02:54]}  Bd6 {[%clk 0:02:24]} 7. h3 {[%clk 0:02:38]}  Bh5 {[%clk 0:02:19]} 8. Bxd6 {[%clk 0:02:36]}  Qxd6 {[%clk 0:02:20]} 9. c4 {[%clk 0:02:36]}  O-O-O {[%clk 0:02:19]} 10. cxd5 {[%clk 0:02:34]}  exd5 {[%clk 0:02:20]} 11. Be2 {[%clk 0:02:34]}  Nge7 {[%clk 0:02:18]} 12. a3 {[%clk 0:02:34]}  g5 {[%clk 0:02:17]} 13. b4 {[%clk 0:02:31]}  Rde8 {[%clk 0:02:09]} 14. Qc2 {[%clk 0:02:27]}  Bg6 {[%clk 0:01:59]} 15. Qc5 {[%clk 0:02:26]}  Nf5 {[%clk 0:01:51]} 16. b5 {[%clk 0:02:21]}  Qxc5 {[%clk 0:01:51]} 17. dxc5 {[%clk 0:02:21]}  Ne5 {[%clk 0:01:51]} 18. O-O {[%clk 0:02:12]}  h5 {[%clk 0:01:43]} 19. Nd4 {[%clk 0:01:49]}  Nxd4 {[%clk 0:01:25]} 20. exd4 {[%clk 0:01:50]}  Nd3 {[%clk 0:01:25]} 21. Bf3 {[%clk 0:01:48]}  Be4 {[%clk 0:01:16]} 22. Bxe4 {[%clk 0:01:42]}  dxe4 {[%clk 0:01:17]} 23. Nb3 {[%clk 0:01:33]}  g4 {[%clk 0:01:10]} 24. h4 {[%clk 0:01:31]}  f5 {[%clk 0:01:10]} 25. Ra2 {[%clk 0:01:27]}  f4 {[%clk 0:01:04]} 26. Re2 {[%clk 0:01:27]}  f3 {[%clk 0:01:03]} 27. Re3 {[%clk 0:01:24]}  Nf4 {[%clk 0:00:48]} 28. g3 {[%clk 0:01:22]}  Nd5 {[%clk 0:00:39]} 29. Ree1 {[%clk 0:01:22]}  e3 {[%clk 0:00:40]} 30. fxe3 {[%clk 0:01:22]}  Nxe3 {[%clk 0:00:32]} 31. Rf2 {[%clk 0:01:21]}  Nf5 {[%clk 0:00:32]} 32. Rd1 {[%clk 0:01:06]}  Nxg3 {[%clk 0:00:30]} 33. d5 {[%clk 0:01:06]}  Ne4 {[%clk 0:00:30]} 34. Rc2 {[%clk 0:01:03]}  f2+ {[%clk 0:00:29]} 35. Kg2 {[%clk 0:01:03]}  Rhf8 {[%clk 0:00:28]} 36. d6 {[%clk 0:01:00]}  Rf7 {[%clk 0:00:13]} 37. Re2 {[%clk 0:00:38]}  Ref8 {[%clk 0:00:13]} 38. Rf1 {[%clk 0:00:26]}  Nc3 {[%clk 0:00:05]} 39. Re5 {[%clk 0:00:16]}  Rf3 {[%clk 0:00:01]} 40. Nd4 {[%clk 0:00:14]}  Rd3 {[%clk 0:00:01]} 41. Ne6 {[%clk 0:00:11]}  cxd6 {[%clk 0:00:02]} 42. cxd6 {[%clk 0:00:10]}  Rff3 {[%clk 0:00:01]} 43. Rxf2 {[%clk 0:00:06]}  Rg3+ {[%clk 0:00:02]} 44. Kh2 {[%clk 0:00:02]}  Rh3+ {[%clk 0:00:01]} 45. Kg1 {[%clk 0:00:02]}  Rdg3+ {[%clk 0:00:01]} 46. Rg2 {[%clk 0:00:03]}  Rh1+ {[%clk 0:00:00]} 47. Kxh1 {[%clk 0:00:03]}  Rxg2 {[%clk 0:00:01]} 48. Kxg2 {[%clk 0:00:03]}  Kd7 {[%clk 0:00:01]} 49. Nc5+ {[%clk 0:00:03]}  Kxd6 {[%clk 0:00:02]} 50. Rxh5 {[%clk 0:00:03]}  Nd5 {[%clk 0:00:01]} 51. Ne4+ {[%clk 0:00:03]}  Ke6 {[%clk 0:00:01]} 52. Rxd5 {[%clk 0:00:03]}  Kxd5 {[%clk 0:00:01]} 53. h5 {[%clk 0:00:03]}  Kc4 {[%clk 0:00:02]} 54. h6 {[%clk 0:00:03]}  Kb3 {[%clk 0:00:03]} 55. h7 {[%clk 0:00:04]}  Kxa3 {[%clk 0:00:04]} 56. h8=Q {[%clk 0:00:04]}  Ka4 {[%clk 0:00:05]} 57. Qd4+ {[%clk 0:00:04]}  Ka5 {[%clk 0:00:04]} 58. Qxa7+ {[%clk 0:00:04]}  Kb4 {[%clk 0:00:04]} 59. Qxb7 {[%clk 0:00:04]}  Kc4 {[%clk 0:00:05]} 60. Kg3 {[%clk 0:00:04]}  Kd3 {[%clk 0:00:05]} 61. Kxg4 {[%clk 0:00:04]}  Ke2 {[%clk 0:00:06]} 62. Qd5 {[%clk 0:00:04]}  Ke1 {[%clk 0:00:06]} 63. Kf3 {[%clk 0:00:04]}  Kf1 {[%clk 0:00:07]} 64. Qd1# {[%clk 0:00:04]} 1-0


[Site "https://www.chess.com"]

[Event "Titled Tuesday Blitz February 14 Early 2023"]
[White "Arenas, David"]
[Black "Tinmaz, Kerem"]
[WhiteFideId "4403177"]
[BlackFideId "44559151"]
[WhiteElo "2426"]
[BlackElo "2177"]
[Result "0-1"]
[Round "03"]
[TimeControl "180+2"]
[Date "2023.02.15"]
[WhiteClock "0:00:10"]
[BlackClock "0:00:03"]

1. e4 {[%clk 0:03:00]}  c6 {[%clk 0:02:59]} 2. d4 {[%clk 0:03:00]}  d5 {[%clk 0:03:00]} 3. e5 {[%clk 0:03:00]}  Bf5 {[%clk 0:02:59]} 4. Nd2 {[%clk 0:03:00]}  e6 {[%clk 0:02:59]} 5. Nb3 {[%clk 0:03:01]}  c5 {[%clk 0:02:56]} 6. dxc5 {[%clk 0:02:57]}  Bxc5 {[%clk 0:02:44]} 7. Nxc5 {[%clk 0:02:43]}  Qa5+ {[%clk 0:02:44]} 8. c3 {[%clk 0:02:43]}  Qxc5 {[%clk 0:02:44]} 9. Nf3 {[%clk 0:02:43]}  Ne7 {[%clk 0:02:38]} 10. Be2 {[%clk 0:02:37]}  O-O {[%clk 0:02:37]} 11. O-O {[%clk 0:02:36]}  Qc7 {[%clk 0:02:19]} 12. Re1 {[%clk 0:02:29]}  Nbc6 {[%clk 0:02:18]} 13. Bf4 {[%clk 0:02:28]}  Ng6 {[%clk 0:02:16]} 14. Bg3 {[%clk 0:02:28]}  Ngxe5 {[%clk 0:01:25]} 15. Nxe5 {[%clk 0:02:23]}  Nxe5 {[%clk 0:01:26]} 16. Qd4 {[%clk 0:02:15]}  f6 {[%clk 0:01:21]} 17. Bf1 {[%clk 0:02:15]}  Kf7 {[%clk 0:00:53]} 18. Bxe5 {[%clk 0:02:14]}  fxe5 {[%clk 0:00:54]} 19. Rxe5 {[%clk 0:02:13]}  Qb6 {[%clk 0:00:37]} 20. Qxb6 {[%clk 0:02:03]}  axb6 {[%clk 0:00:38]} 21. a3 {[%clk 0:02:03]}  Kf6 {[%clk 0:00:37]} 22. f4 {[%clk 0:01:44]}  g5 {[%clk 0:00:33]} 23. g3 {[%clk 0:01:44]}  gxf4 {[%clk 0:00:30]} 24. gxf4 {[%clk 0:01:44]}  Rg8+ {[%clk 0:00:29]} 25. Kf2 {[%clk 0:01:42]}  Rg4 {[%clk 0:00:29]} 26. Kf3 {[%clk 0:01:34]}  Rag8 {[%clk 0:00:29]} 27. Re2 {[%clk 0:01:27]}  Rg1 {[%clk 0:00:19]} 28. Ke3 {[%clk 0:01:13]}  Rh1 {[%clk 0:00:17]} 29. Rae1 {[%clk 0:00:22]}  Rgg1 {[%clk 0:00:16]} 30. Kf2 {[%clk 0:00:22]}  Rg6 {[%clk 0:00:04]} 31. Ke3 {[%clk 0:00:22]}  Rgg1 {[%clk 0:00:03]} 32. Kf2 {[%clk 0:00:20]}  Rg6 {[%clk 0:00:03]} 33. Ke3 {[%clk 0:00:20]}  Kf7 {[%clk 0:00:02]} 34. a4 {[%clk 0:00:15]}  Rgg1 {[%clk 0:00:02]} 35. Kf2 {[%clk 0:00:16]}  Bd3 {[%clk 0:00:02]} 36. Rxe6 {[%clk 0:00:11]}  Rxf1+ {[%clk 0:00:02]} 37. Rxf1 {[%clk 0:00:10]}  Rxf1+ {[%clk 0:00:03]} 38. Kg3 {[%clk 0:00:10]}  Kxe6 {[%clk 0:00:03]} 0-1


[Site "https://www.chess.com"]

[Event "Titled Tuesday Blitz February 14 Early 2023"]
[White "Cella, Glaucio Dalla Cortt"]
[Black "Lesbekova, Assel"]
[WhiteFideId "2119455"]
[BlackFideId "13713248"]
[WhiteElo "1894"]
[BlackElo "1772"]
[Result "1-0"]
[Round "03"]
[TimeControl "180+2"]
[Date "2023.02.15"]
[WhiteClock "0:00:42"]
[BlackClock "0:00:01"]

1. e4 {[%clk 0:03:00]}  c5 {[%clk 0:02:59]} 2. Nf3 {[%clk 0:03:01]}  Nc6 {[%clk 0:03:00]} 3. c3 {[%clk 0:03:02]}  d5 {[%clk 0:02:58]} 4. exd5 {[%clk 0:03:02]}  Qxd5 {[%clk 0:02:58]} 5. Na3 {[%clk 0:03:01]}  e5 {[%clk 0:02:51]} 6. d4 {[%clk 0:02:59]}  cxd4 {[%clk 0:02:49]} 7. cxd4 {[%clk 0:02:58]}  Bxa3 {[%clk 0:02:44]} 8. bxa3 {[%clk 0:02:54]}  Nxd4 {[%clk 0:02:43]} 9. Nxd4 {[%clk 0:02:47]}  exd4 {[%clk 0:02:39]} 10. Be3 {[%clk 0:02:42]}  Qa5+ {[%clk 0:02:35]} 11. Bd2 {[%clk 0:02:38]}  Qxa3 {[%clk 0:02:32]} 12. Bb5+ {[%clk 0:02:35]}  Bd7 {[%clk 0:02:28]} 13. Qe2+ {[%clk 0:02:34]}  Qe7 {[%clk 0:02:27]} 14. Rb1 {[%clk 0:02:28]}  Bxb5 {[%clk 0:02:20]} 15. Rxb5 {[%clk 0:02:22]}  Qxe2+ {[%clk 0:02:17]} 16. Kxe2 {[%clk 0:02:23]}  b6 {[%clk 0:02:12]} 17. Rc1 {[%clk 0:02:19]}  Nf6 {[%clk 0:02:08]} 18. Bg5 {[%clk 0:02:18]}  Nd7 {[%clk 0:01:27]} 19. Rc7 {[%clk 0:02:18]}  f6 {[%clk 0:01:24]} 20. Bf4 {[%clk 0:02:18]}  g5 {[%clk 0:01:18]} 21. Rd5 {[%clk 0:01:51]}  Nc5 {[%clk 0:01:07]} 22. Bd6 {[%clk 0:01:48]}  d3+ {[%clk 0:00:50]} 23. Kd1 {[%clk 0:01:34]}  Nd7 {[%clk 0:00:47]} 24. Rxd3 {[%clk 0:01:34]}  Rd8 {[%clk 0:00:38]} 25. Rxa7 {[%clk 0:01:31]}  Kf7 {[%clk 0:00:12]} 26. Bc7 {[%clk 0:01:27]}  Ke6 {[%clk 0:00:12]} 27. Bxd8 {[%clk 0:01:24]}  Rxd8 {[%clk 0:00:13]} 28. Ke2 {[%clk 0:01:22]}  h5 {[%clk 0:00:12]} 29. h3 {[%clk 0:01:21]}  Ke7 {[%clk 0:00:10]} 30. Rb7 {[%clk 0:01:19]}  Ke6 {[%clk 0:00:06]} 31. g4 {[%clk 0:01:17]}  h4 {[%clk 0:00:03]} 32. Ke3 {[%clk 0:01:10]}  Ke7 {[%clk 0:00:03]} 33. Ke4 {[%clk 0:01:01]}  Ke6 {[%clk 0:00:02]} 34. Rdxd7 {[%clk 0:00:59]}  Rxd7 {[%clk 0:00:02]} 35. Rxb6+ {[%clk 0:00:59]}  Ke7 {[%clk 0:00:01]} 36. Kf5 {[%clk 0:00:56]}  Rd5+ {[%clk 0:00:01]} 37. Kg6 {[%clk 0:00:56]}  Re5 {[%clk 0:00:01]} 38. Rxf6 {[%clk 0:00:54]}  Re2 {[%clk 0:00:01]} 39. a4 {[%clk 0:00:48]}  Ra2 {[%clk 0:00:01]} 40. Rf5 {[%clk 0:00:48]}  Rxa4 {[%clk 0:00:01]} 41. Kxg5 {[%clk 0:00:49]}  Ke6 {[%clk 0:00:01]} 42. Kxh4 {[%clk 0:00:47]}  Ra8 {[%clk 0:00:01]} 43. Rh5 {[%clk 0:00:43]}  Ra2 {[%clk 0:00:01]} 44. f4 {[%clk 0:00:43]}  Kf6 {[%clk 0:00:01]} 45. f5 {[%clk 0:00:42]} 1-0


[Site "https://www.chess.com"]

[Event "Titled Tuesday Blitz February 14 Early 2023"]
[White "Petrovic, Aleksa"]
[Black "Torres Dominguez, David"]
[WhiteFideId "967629"]
[BlackFideId "2220857"]
[WhiteElo "2332"]
[BlackElo "1994"]
[Result "1-0"]
[Round "03"]
[TimeControl "180+2"]
[Date "2023.02.15"]
[WhiteClock "0:01:41"]
[BlackClock "0:00:48"]

1. d4 {[%clk 0:03:00]}  e5 {[%clk 0:02:59]} 2. dxe5 {[%clk 0:03:00]}  d6 {[%clk 0:03:00]} 3. e6 {[%clk 0:02:49]}  Bxe6 {[%clk 0:02:58]} 4. g3 {[%clk 0:02:49]}  Qd7 {[%clk 0:02:58]} 5. Bg2 {[%clk 0:02:49]}  Nc6 {[%clk 0:02:59]} 6. Nf3 {[%clk 0:02:44]}  Bh3 {[%clk 0:02:58]} 7. O-O {[%clk 0:02:44]}  O-O-O {[%clk 0:02:57]} 8. Nc3 {[%clk 0:02:43]}  h5 {[%clk 0:02:56]} 9. Bg5 {[%clk 0:02:42]}  f6 {[%clk 0:02:55]} 10. Be3 {[%clk 0:02:41]}  h4 {[%clk 0:02:52]} 11. b4 {[%clk 0:02:18]}  hxg3 {[%clk 0:02:44]} 12. fxg3 {[%clk 0:02:17]}  Nge7 {[%clk 0:02:32]} 13. b5 {[%clk 0:02:13]}  Ne5 {[%clk 0:02:25]} 14. Nxe5 {[%clk 0:02:12]}  dxe5 {[%clk 0:02:07]} 15. Qxd7+ {[%clk 0:02:09]}  Rxd7 {[%clk 0:02:04]} 16. Rad1 {[%clk 0:02:02]}  Bxg2 {[%clk 0:02:01]} 17. Kxg2 {[%clk 0:02:02]}  Rxd1 {[%clk 0:01:59]} 18. Rxd1 {[%clk 0:02:03]}  Nf5 {[%clk 0:01:59]} 19. Bf2 {[%clk 0:02:03]}  Bb4 {[%clk 0:01:44]} 20. Nd5 {[%clk 0:02:02]}  Bd6 {[%clk 0:01:44]} 21. e4 {[%clk 0:02:02]}  Ne7 {[%clk 0:01:34]} 22. c4 {[%clk 0:02:02]}  Nxd5 {[%clk 0:01:33]} 23. exd5 {[%clk 0:02:02]}  b6 {[%clk 0:01:33]} 24. a4 {[%clk 0:02:02]}  Kb7 {[%clk 0:01:28]} 25. a5 {[%clk 0:02:01]}  bxa5 {[%clk 0:01:25]} 26. c5 {[%clk 0:02:01]}  Be7 {[%clk 0:01:24]} 27. Ra1 {[%clk 0:02:00]}  a6 {[%clk 0:01:19]} 28. c6+ {[%clk 0:01:57]}  Kb8 {[%clk 0:01:10]} 29. Rxa5 {[%clk 0:01:47]}  axb5 {[%clk 0:01:08]} 30. Ba7+ {[%clk 0:01:46]}  Kc8 {[%clk 0:01:04]} 31. Bc5 {[%clk 0:01:47]}  Kb8 {[%clk 0:00:52]} 32. Ba7+ {[%clk 0:01:41]}  Kc8 {[%clk 0:00:48]} 33. Rxb5 {[%clk 0:01:41]} 1-0


[Site "https://www.chess.com"]

[Event "Titled Tuesday Blitz February 14 Early 2023"]
[White "Girsh, Daniel"]
[Black "Sailer, Mike"]
[WhiteFideId "30949190"]
[BlackFideId "2012901"]
[WhiteElo "2123"]
[BlackElo "2109"]
[Result "1-0"]
[Round "03"]
[TimeControl "180+2"]
[Date "2023.02.15"]
[WhiteClock "0:01:36"]
[BlackClock "0:00:03"]

1. e4 {[%clk 0:03:00]}  d5 {[%clk 0:00:49]} 2. exd5 {[%clk 0:02:50]}  Qxd5 {[%clk 0:00:49]} 3. Nc3 {[%clk 0:02:51]}  Qd6 {[%clk 0:00:49]} 4. d4 {[%clk 0:02:51]}  Nf6 {[%clk 0:00:50]} 5. Nf3 {[%clk 0:02:51]}  c6 {[%clk 0:00:51]} 6. Ne5 {[%clk 0:02:51]}  Nbd7 {[%clk 0:00:51]} 7. Bf4 {[%clk 0:02:50]}  Nd5 {[%clk 0:00:51]} 8. Nxd5 {[%clk 0:02:48]}  Qxd5 {[%clk 0:00:51]} 9. c4 {[%clk 0:02:41]}  Qe4+ {[%clk 0:00:52]} 10. Be3 {[%clk 0:02:39]}  Nxe5 {[%clk 0:00:51]} 11. dxe5 {[%clk 0:02:40]}  Qxe5 {[%clk 0:00:50]} 12. Be2 {[%clk 0:02:41]}  Bf5 {[%clk 0:00:48]} 13. O-O {[%clk 0:02:40]}  Rd8 {[%clk 0:00:49]} 14. Qb3 {[%clk 0:02:40]}  Qc7 {[%clk 0:00:48]} 15. Bxa7 {[%clk 0:02:32]}  Rd7 {[%clk 0:00:33]} 16. Bb6 {[%clk 0:02:30]}  Qc8 {[%clk 0:00:29]} 17. Rad1 {[%clk 0:02:27]}  e5 {[%clk 0:00:25]} 18. Rxd7 {[%clk 0:02:27]}  Bxd7 {[%clk 0:00:26]} 19. Qe3 {[%clk 0:02:21]}  Bd6 {[%clk 0:00:18]} 20. Rd1 {[%clk 0:02:21]}  Bc7 {[%clk 0:00:11]} 21. Bc5 {[%clk 0:02:20]}  f6 {[%clk 0:00:10]} 22. Bh5+ {[%clk 0:02:17]}  g6 {[%clk 0:00:10]} 23. Qh6 {[%clk 0:02:15]}  Kf7 {[%clk 0:00:10]} 24. Bf3 {[%clk 0:02:06]}  Be6 {[%clk 0:00:09]} 25. b3 {[%clk 0:02:03]}  Qg8 {[%clk 0:00:07]} 26. Qe3 {[%clk 0:01:52]}  Qg7 {[%clk 0:00:05]} 27. Bb6 {[%clk 0:01:51]}  Bb8 {[%clk 0:00:03]} 28. Qc5 {[%clk 0:01:48]}  Re8 {[%clk 0:00:03]} 29. h3 {[%clk 0:01:45]}  Qf8 {[%clk 0:00:03]} 30. Qe3 {[%clk 0:01:44]}  Qe7 {[%clk 0:00:04]} 31. Bc5 {[%clk 0:01:44]}  Qc7 {[%clk 0:00:03]} 32. Bd6 {[%clk 0:01:43]}  Qc8 {[%clk 0:00:03]} 33. Qb6 {[%clk 0:01:38]}  Bxd6 {[%clk 0:00:03]} 34. Rxd6 {[%clk 0:01:38]}  Ke7 {[%clk 0:00:03]} 35. c5 {[%clk 0:01:38]}  Rd8 {[%clk 0:00:03]} 36. Rxd8 {[%clk 0:01:35]}  Qxd8 {[%clk 0:00:04]} 37. Qxb7+ {[%clk 0:01:36]}  Qd7 {[%clk 0:00:03]} 38. Qxc6 {[%clk 0:01:36]}  Qxc6 {[%clk 0:00:03]} 39. Bxc6 {[%clk 0:01:36]} 1-0


[Site "https://www.chess.com"]

[Event "Titled Tuesday Blitz February 14 Early 2023"]
[White "Delorme, Alban"]
[Black "Kuzmin, Roman"]
[WhiteFideId "623636"]
[BlackFideId "44134932"]
[WhiteElo "2298"]
[BlackElo "2198"]
[Result "0-1"]
[Round "03"]
[TimeControl "180+2"]
[Date "2023.02.15"]
[WhiteClock "0:00:53"]
[BlackClock "0:01:39"]

1. e4 {[%clk 0:03:00]}  c5 {[%clk 0:02:59]} 2. Nf3 {[%clk 0:03:00]}  d6 {[%clk 0:02:59]} 3. d4 {[%clk 0:02:59]}  cxd4 {[%clk 0:03:00]} 4. Nxd4 {[%clk 0:02:59]}  Nf6 {[%clk 0:03:01]} 5. Nc3 {[%clk 0:03:00]}  a6 {[%clk 0:03:01]} 6. Bg5 {[%clk 0:03:00]}  e6 {[%clk 0:03:02]} 7. f4 {[%clk 0:03:00]}  h6 {[%clk 0:03:01]} 8. Bh4 {[%clk 0:02:58]}  Qb6 {[%clk 0:03:01]} 9. a3 {[%clk 0:02:38]}  Be7 {[%clk 0:02:59]} 10. Bf2 {[%clk 0:02:35]}  Qc7 {[%clk 0:02:59]} 11. Qd2 {[%clk 0:02:35]}  Nbd7 {[%clk 0:02:58]} 12. O-O-O {[%clk 0:02:35]}  b5 {[%clk 0:02:58]} 13. h3 {[%clk 0:02:33]}  Bb7 {[%clk 0:02:58]} 14. Bd3 {[%clk 0:02:34]}  Nc5 {[%clk 0:02:57]} 15. Rhe1 {[%clk 0:02:28]}  O-O {[%clk 0:02:53]} 16. g4 {[%clk 0:02:28]}  d5 {[%clk 0:02:54]} 17. e5 {[%clk 0:02:27]}  Nfe4 {[%clk 0:02:54]} 18. Bxe4 {[%clk 0:02:25]}  Nxe4 {[%clk 0:02:54]} 19. Nxe4 {[%clk 0:02:25]}  dxe4 {[%clk 0:02:55]} 20. Bg3 {[%clk 0:02:17]}  Rfd8 {[%clk 0:02:47]} 21. Qe3 {[%clk 0:02:12]}  Rac8 {[%clk 0:02:47]} 22. Kb1 {[%clk 0:02:09]}  b4 {[%clk 0:02:30]} 23. axb4 {[%clk 0:01:40]}  Bxb4 {[%clk 0:02:23]} 24. c3 {[%clk 0:01:39]}  Bc5 {[%clk 0:02:17]} 25. f5 {[%clk 0:01:38]}  Bd5 {[%clk 0:02:18]} 26. f6 {[%clk 0:01:37]}  Qa5 {[%clk 0:02:06]} 27. Bf4 {[%clk 0:01:17]}  Qa2+ {[%clk 0:01:50]} 28. Kc1 {[%clk 0:01:12]}  Bb3 {[%clk 0:01:43]} 29. Bxh6 {[%clk 0:00:56]}  Qa1+ {[%clk 0:01:38]} 30. Kd2 {[%clk 0:00:53]}  Qxb2# {[%clk 0:01:39]} 0-1


[Site "https://www.chess.com"]

[Event "Titled Tuesday Blitz February 14 Early 2023"]
[White "Llanos, Guillermo"]
[Black "Zemlyanskii, Ivan"]
[WhiteFideId "100358"]
[BlackFideId "24249971"]
[WhiteElo "2290"]
[BlackElo "2300"]
[Result "0-1"]
[Round "03"]
[TimeControl "180+2"]
[Date "2023.02.15"]
[WhiteClock "0:00:07"]
[BlackClock "0:00:37"]

1. Nf3 {[%clk 0:03:00]}  d5 {[%clk 0:02:59]} 2. e3 {[%clk 0:02:57]}  Nf6 {[%clk 0:02:58]} 3. c4 {[%clk 0:02:55]}  e6 {[%clk 0:02:58]} 4. Nc3 {[%clk 0:02:54]}  c6 {[%clk 0:02:54]} 5. d4 {[%clk 0:02:53]}  Nbd7 {[%clk 0:02:52]} 6. Be2 {[%clk 0:02:53]}  Be7 {[%clk 0:02:50]} 7. b3 {[%clk 0:02:51]}  O-O {[%clk 0:02:50]} 8. Bb2 {[%clk 0:02:51]}  b6 {[%clk 0:02:51]} 9. Qc2 {[%clk 0:02:50]}  Bb7 {[%clk 0:02:51]} 10. O-O {[%clk 0:02:49]}  Qc7 {[%clk 0:02:49]} 11. Rad1 {[%clk 0:02:34]}  Rac8 {[%clk 0:02:48]} 12. Ba1 {[%clk 0:02:24]}  Rfd8 {[%clk 0:02:45]} 13. Qb2 {[%clk 0:02:21]}  Nf8 {[%clk 0:02:31]} 14. cxd5 {[%clk 0:02:20]}  cxd5 {[%clk 0:02:27]} 15. Rc1 {[%clk 0:02:15]}  Qb8 {[%clk 0:02:10]} 16. Bd3 {[%clk 0:02:14]}  Ng6 {[%clk 0:02:05]} 17. Rc2 {[%clk 0:02:04]}  Ne4 {[%clk 0:02:05]} 18. Bxe4 {[%clk 0:02:01]}  dxe4 {[%clk 0:02:05]} 19. Nd2 {[%clk 0:01:59]}  f5 {[%clk 0:01:51]} 20. Rfc1 {[%clk 0:01:57]}  e5 {[%clk 0:01:48]} 21. Nb5 {[%clk 0:01:50]}  a6 {[%clk 0:01:37]} 22. Nc7 {[%clk 0:01:37]}  exd4 {[%clk 0:01:24]} 23. Ne6 {[%clk 0:01:21]}  Bf6 {[%clk 0:01:10]} 24. Nxd4 {[%clk 0:01:05]}  Bxd4 {[%clk 0:00:57]} 25. Rxc8 {[%clk 0:01:04]}  Bxc8 {[%clk 0:00:51]} 26. exd4 {[%clk 0:01:00]}  Nf4 {[%clk 0:00:51]} 27. d5 {[%clk 0:00:51]}  Qb7 {[%clk 0:00:51]} 28. Kh1 {[%clk 0:00:14]}  Nd3 {[%clk 0:00:50]} 29. Qc3 {[%clk 0:00:14]}  Nxc1 {[%clk 0:00:46]} 30. Qxc1 {[%clk 0:00:14]}  Qxd5 {[%clk 0:00:45]} 31. Bc3 {[%clk 0:00:13]}  f4 {[%clk 0:00:41]} 32. Kg1 {[%clk 0:00:12]}  Bb7 {[%clk 0:00:41]} 33. Nf1 {[%clk 0:00:10]}  e3 {[%clk 0:00:41]} 34. f3 {[%clk 0:00:10]}  e2 {[%clk 0:00:37]} 35. Nd2 {[%clk 0:00:09]}  Qc5+ {[%clk 0:00:37]} 36. Kh1 {[%clk 0:00:07]}  Qxc3 {[%clk 0:00:37]} 0-1


[Site "https://www.chess.com"]